bitfinex-derivatives/quotes_SOLF0:USTF0_20250816
["timestamp","ask_amount","ask_price","bid_price","bid_amount"]
[1755357799394,2.98,189.21,189.17,5.2828]
[1755357801593,2.98,189.21,189.13,44.0]
[1755357801594,2.98,189.3,189.19,2.50951372]
[1755357801889,2.50951372,189.32,189.19,2.50951372]
[1755357801890,2.98,189.28,189.19,2.50951372]
[1755357802194,2.98,189.28,189.21,5.2819]
[1755357804694,2.98,189.28,189.2,5.2821]
[1755357807295,2.98,189.28,189.19,2.50951372]
[1755357807494,3.82472029,189.27,189.19,2.50951372]
[1755357807794,2.98,189.25,189.19,2.50951372]
[1755357811798,2.98,189.25,189.19,7.79191372]
[1755357811998,2.98,189.25,189.19,2.50951372]
[1755357813697,2.98,189.25,189.19,7.79171372]
[1755357818000,2.98,189.25,189.19,2.50951372]
[1755357818996,2.98,189.25,189.22,2.50951372]
[1755357819200,2.98,189.25,189.19,2.50951372]
[1755357820801,2.98,189.25,189.2,5.2819]
[1755357821000,2.98,189.25,189.19,2.50951372]
[1755357822199,2.98,189.25,189.2,5.2821]
[1755357823500,2.98,189.25,189.19,7.79181372]
[1755357825507,2.98,189.25,189.2,5.2822]
[1755357825806,2.98,189.33,189.22,2.50951372]
[1755357826003,4.42746327,189.36,189.17,8.74964868]
[1755357826004,2.98,189.31,189.25,2.50951372]
[1755357830203,15.86,189.25,189.06,8.78558518]
[1755357830403,1.21,189.1,189.0,3.03]
[1755357830707,2.50951372,189.05,189.0,3.03]
[1755357831009,3.82643158,189.04,188.91,2.50951372]
[1755357831216,3.71951372,189.02,188.95,3.03]
[1755357831413,11.79584436,189.01,188.95,3.03]
[1755357831706,11.79584436,189.0,188.95,3.03]
[1755357831907,11.79601325,188.99,188.95,3.03]
[1755357832111,5.87574891,189.13,188.95,3.03]
[1755357832112,1.21,189.06,188.95,3.03]
[1755357832514,1.21,189.06,188.97,2.50951372]
[1755357832812,2.86,189.14,188.98,3.03]
[1755357833014,2.86,189.12,188.98,3.03]
[1755357833215,2.86,189.1,189.0,5.2877]
[1755357833408,2.86,189.1,189.01,3.03]
[1755357833608,4.36513846,189.09,189.01,3.03]
[1755357833903,2.86,189.1,189.01,3.03]
[1755357834108,7.22509824,189.09,189.01,3.03]
[1755357834413,2.86,189.09,189.01,3.03]
[1755357835416,2.86,189.07,188.98,3.03]
[1755357837615,4.35443468,189.06,188.98,3.03]
[1755357837818,2.86,189.04,188.98,3.03]
[1755357838324,4.35151977,189.03,188.98,3.03]
[1755357838616,2.86,189.04,188.96,0.92058621]
[1755357838617,2.86,189.02,188.96,0.92058621]
[1755357838821,2.86,189.01,188.96,0.92058621]
[1755357839022,2.86,189.01,188.96,3.95058621]
[1755357839218,2.86,189.01,188.96,3.03]
[1755357839422,2.86,189.01,188.92,3.03]
[1755357839720,2.86,189.01,188.93,3.03]
[1755357839923,4.34828903,189.0,188.93,3.03]
[1755357840115,7.28746327,189.07,188.93,3.03]
[1755357840319,2.86,189.05,188.93,3.03]
[1755357840524,2.86,189.04,188.97,5.2886]
[1755357840719,2.86,189.06,189.0,3.03]
[1755357841316,2.86,189.04,189.0,3.03]
[1755357841516,2.86,189.03,189.0,3.03]
[1755357841721,2.86,189.03,189.01,3.03]
[1755357841923,2.86,189.02,189.01,3.03]
[1755357842118,2.86,189.02,188.97,3.03]
[1755357842319,2.86,189.01,188.95,9.55139556]
[1755357842520,2.86,189.01,188.99,3.03]
[1755357842720,4.42746327,189.1,189.0,3.03]
[1755357842926,7.64620878,189.09,189.0,3.03]
[1755357843118,7.64620878,189.09,188.95,4.26229556]
[1755357843119,2.86,189.04,188.96,3.03]
[1755357843520,2.86,189.06,188.99,4.26229556]
[1755357843719,2.86,189.06,189.01,3.03]
[1755357843928,2.86,189.15,189.01,3.03]
[1755357844123,2.86,189.13,189.02,5.2872]
[1755357844327,2.86,189.11,189.04,3.03]
[1755357844523,10.52241508,189.1,189.04,3.03]
[1755357844724,5.76753737,189.09,189.04,8.3164]
[1755357844924,2.86,189.11,189.05,3.03]
[1755357845128,5.61062087,189.1,189.05,3.03]
[1755357845423,2.86,189.14,189.07,3.03]
[1755357845726,2.86,189.12,189.04,3.03]
[1755357845924,14.70045316,189.11,189.04,3.03]
[1755357846227,2.86,189.09,189.04,3.03]
[1755357846427,5.61010411,189.08,189.04,5.2866]
[1755357846620,2.86,189.09,189.04,5.2866]
[1755357846621,2.86,189.09,189.06,3.03]
[1755357846823,4.42746327,189.18,189.03,4.26229556]
[1755357847128,2.86,189.11,189.04,3.03]
[1755357847328,5.60962848,189.1,189.04,3.03]
[1755357847528,2.86,189.11,189.04,3.03]
[1755357847730,5.60940168,189.1,189.04,3.03]
[1755357847923,2.86,189.11,189.04,3.03]
[1755357848124,10.36188424,189.1,189.04,3.03]
[1755357848320,2.86,189.12,189.09,3.03]
[1755357848630,4.26229556,189.21,189.03,4.26229556]
[1755357848631,2.86,189.15,189.08,3.03]
[1755357848831,10.36014851,189.14,189.1,5.2849]
[1755357849026,2.86,189.18,189.11,4.26229556]
[1755357849331,2.86,189.16,189.09,8.3151]
[1755357849523,10.35829068,189.15,189.07,4.26229556]
[1755357849728,5.60733934,189.14,189.08,3.03]
[1755357849930,5.60733934,189.13,189.08,3.03]
[1755357850125,4.42746327,189.23,189.1,5.2849]
[1755357850432,2.86,189.21,189.09,3.03]
[1755357850636,2.86,189.19,189.09,3.03]
[1755357850929,2.86,189.17,189.09,3.03]
[1755357851132,2.86,189.15,189.09,3.03]
[1755357851327,10.46911669,189.14,189.09,3.03]
[1755357851637,4.42746327,189.22,189.09,3.03]
[1755357851638,2.86,189.11,189.09,3.03]
[1755357851943,5.720118,189.1,189.07,4.26229556]
[1755357852126,5.71992144,189.09,189.05,3.03]
[1755357852329,2.86,189.07,189.05,3.03]
[1755357853229,5.66886792,189.06,189.04,136.12]
[1755357853531,2.86,189.04,189.02,3.03]
[1755357853929,2.86,189.13,189.0,3.03]
[1755357854132,2.86,189.11,189.0,3.03]
[1755357854332,2.86,189.09,189.01,3.03]
[1755357854529,2.86,189.07,189.01,3.03]
[1755357854731,8.52934637,189.06,189.01,3.03]
[1755357854932,5.66934637,189.05,189.01,3.03]
[1755357855136,2.86,189.13,189.02,3.03]
[1755357855434,2.86,189.11,189.02,3.03]
[1755357855633,4.42746327,189.14,189.02,3.03]
[1755357855634,2.86,189.09,189.02,3.03]
[1755357855835,10.42011749,189.08,189.02,3.03]
[1755357856024,10.42011749,189.07,189.02,3.03]
[1755357856228,5.66636712,189.06,189.02,3.03]
[1755357856428,5.66636712,189.05,189.02,3.03]
[1755357856636,2.86,189.07,189.02,5.2871]
[1755357856835,5.66670399,189.06,189.05,3.03]
[1755357857231,10.42044864,189.06,189.05,3.03]
[1755357857435,5.66670399,189.06,189.05,3.03]
[1755357857841,2.86,189.11,189.05,3.55]
[1755357858039,2.86,189.08,189.06,3.03]
[1755357858237,5.66625886,189.07,189.04,3.03]
[1755357858437,8.52625886,189.06,189.04,3.03]
[1755357858634,5.66625886,189.05,189.04,3.03]
[1755357861542,4.42746327,189.13,189.04,3.03]
[1755357861738,3.0,189.05,189.04,3.03]
[1755357862338,3.0,189.05,189.03,4.26229556]
[1755357862541,3.0,189.04,189.03,7.21229556]
[1755357863144,3.0,189.06,189.03,7.21229556]
[1755357863447,3.0,189.05,189.04,2.95]
[1755357863745,4.42746327,189.12,189.04,2.95]
[1755357863945,3.0,189.06,189.04,2.95]
[1755357864841,3.0,189.11,189.04,2.95]
[1755357865043,5.87574891,189.15,189.04,2.95]
[1755357865044,3.0,189.09,189.04,2.95]
[1755357865244,3.0,189.07,189.04,2.95]
[1755357865443,3.0,189.06,189.04,2.95]
[1755357866140,4.42746327,189.13,189.04,2.95]
[1755357866346,3.0,189.05,189.04,2.95]
[1755357867140,4.42746327,189.12,189.04,2.95]
[1755357867344,3.0,189.1,189.04,2.95]
[1755357867544,14.4132493,189.09,189.04,2.95]
[1755357867743,8.42351964,189.08,189.04,8.2364]
[1755357868047,3.0,189.07,189.06,2.95]
[1755357868242,8.42395038,189.07,189.06,2.95]
[1755357868549,3.0,189.07,189.06,2.95]
[1755357868848,8.42658757,189.07,189.06,2.95]
[1755357869452,8.42658757,189.07,189.05,2.51103077]
[1755357869654,3.0,189.06,189.05,5.46103077]
[1755357870152,8.43191052,189.06,189.05,5.46103077]
[1755357870347,3.0,189.06,189.05,5.46103077]
[1755357871151,8.43648253,189.06,189.05,5.46103077]
[1755357872051,12.79890477,189.06,189.05,2.51103077]
[1755357872352,17.39223614,189.06,189.05,2.51103077]
[1755357873753,12.79890477,189.06,189.05,5.46103077]
[1755357874455,9.79890477,189.06,189.05,5.46103077]
[1755357874753,4.36242224,189.06,189.05,5.46103077]
[1755357875254,13.92222347,189.06,189.05,5.46103077]
[1755357875761,4.36242224,189.06,189.05,5.46103077]
[1755357876649,4.42746327,189.08,189.05,5.46103077]
[1755357876850,8.79218073,189.13,189.06,2.95]
[1755357876851,4.42746327,189.13,189.06,2.95]
[1755357877156,3.0,189.16,189.11,2.95]
[1755357877352,3.0,189.16,189.14,2.51103077]
[1755357877650,3.0,189.15,189.14,5.46103077]
[1755357879651,3.0,189.15,189.14,2.51103077]
[1755357881054,63.54458949,189.26,189.14,5.46103077]
[1755357881258,11.80073798,189.25,189.14,5.46103077]
[1755357881459,3.0,189.23,189.14,5.46103077]
[1755357882153,3.0,189.23,189.15,2.95]
[1755357882554,3.0,189.23,189.15,8.2335]
[1755357882854,3.0,189.23,189.15,2.95]
[1755357886854,3.0,189.23,189.15,5.2835]
[1755357887059,3.0,189.23,189.18,2.95]
[1755357887264,3.0,189.23,189.19,2.95]
[1755357887664,3.0,189.23,189.2,2.95]
[1755357888359,3.0,189.25,189.2,2.95]
[1755357888565,3.0,189.25,189.2,5.46103077]
[1755357888863,3.0,189.25,189.22,2.86]
[1755357889562,2.51103077,189.33,189.22,2.86]
[1755357889766,3.05,189.26,189.24,2.86]
[1755357890060,3.05,189.26,189.25,2.86]
[1755357890866,355.26,189.34,189.25,2.86]
[1755357891065,3.05,189.27,189.26,2.86]
[1755357891666,3.05,189.27,189.24,2.86]
[1755357891966,3.05,189.26,189.25,2.86]
[1755357892156,3.05,189.26,189.2,2.51103077]
[1755357892362,3.05,189.26,189.21,2.86]
[1755357892757,3.05,189.26,189.2,2.51103077]
[1755357892961,3.05,189.26,189.22,2.86]
[1755357893958,3.05,189.26,189.2,5.37103077]
[1755357894166,3.05,189.26,189.2,2.51103077]
[1755357894562,3.05,189.26,189.22,2.86]
[1755357894762,3.05,189.26,189.2,2.51103077]
[1755357894970,3.05,189.26,189.21,2.86]
[1755357895168,3.05,189.25,189.21,2.86]
[1755357895568,3.05,189.24,189.21,2.86]
[1755357896468,2.51103077,189.35,189.21,2.86]
[1755357896661,3.05,189.26,189.25,2.86]
[1755357896865,2.51103077,189.35,189.23,5.37103077]
[1755357897168,3.91364551,189.34,189.23,2.51103077]
[1755357897367,3.05,189.25,189.24,2.86]
[1755357898975,2.51103077,189.35,189.24,2.86]
[1755357899174,3.05,189.33,189.24,2.86]
[1755357900074,3.05,189.33,189.24,8.141]
[1755357900273,3.05,189.33,189.25,2.86]
[1755357905774,3.05,189.33,189.23,2.51103077]
[1755357905970,3.05,189.33,189.23,2.86]
[1755357906269,3.05,189.31,189.2,2.86]
[1755357907077,2.51103077,189.29,189.2,2.86]
[1755357907376,2.51103077,189.29,189.18,2.86]
[1755357907377,3.05,189.28,189.18,2.86]
[1755357910481,3.05,189.28,189.2,2.86]
[1755357910780,3.05,189.28,189.23,2.86]
[1755357911983,3.05,189.27,189.23,2.86]
[1755357913278,3.05,189.29,189.23,8.1413]
[1755357913472,4.43060418,189.37,189.25,2.51103077]
[1755357913676,8.79218073,189.42,189.29,2.86]
[1755357913677,3.05,189.35,189.29,2.86]
[1755357917679,3.05,189.4,189.29,2.86]
[1755357917879,3.05,189.38,189.29,2.86]
[1755357918076,6.94163495,189.41,189.29,2.86]
[1755357918077,3.05,189.36,189.29,2.86]
[1755357920473,3.92539867,189.35,189.29,2.86]
[1755357920678,2.86,189.33,189.29,2.86]
[1755357921775,4.43060418,189.4,189.29,2.86]
[1755357921975,4.43060418,189.4,189.22,46.51103077]
[1755357921976,11.14545645,189.39,189.34,2.51103077]
[1755357922186,2.86,189.37,189.34,2.51103077]
[1755357922388,2.86,189.37,189.36,2.96]
[1755357922580,2.86,189.39,189.36,2.96]
[1755357922775,2.86,189.39,189.34,2.51103077]
[1755357922776,2.86,189.38,189.37,2.96]
[1755357923287,2.86,189.37,189.35,2.96]
[1755357923681,2.86,189.43,189.35,2.96]
[1755357923986,2.86,189.41,189.38,2.96]
[1755357924190,3.92294102,189.4,189.36,2.96]
[1755357924387,2.86,189.44,189.36,2.96]
[1755357924589,2.86,189.42,189.36,2.96]
[1755357924786,2.86,189.4,189.36,2.96]
[1755357925090,2.86,189.39,189.36,2.96]
[1755357925679,2.86,189.39,189.38,2.96]
[1755357929791,2.86,189.39,189.35,2.51103077]
[1755357929991,2.86,189.38,189.35,2.51103077]
[1755357930191,2.86,189.38,189.37,2.96]
[1755357930596,2.86,189.38,189.35,2.96]
[1755357931591,2.86,189.37,189.36,2.96]
[1755357933498,4.43060418,189.45,189.36,2.96]
[1755357933695,2.86,189.43,189.36,2.96]
[1755357933899,2.86,189.41,189.36,2.96]
[1755357934100,2.86,189.4,189.36,2.96]
[1755357934300,2.86,189.39,189.36,2.96]
[1755357934807,2.86,189.41,189.36,2.96]
[1755357935007,2.86,189.4,189.36,2.96]
[1755357935509,6.94163495,189.48,189.36,2.96]
[1755357935510,2.86,189.39,189.36,2.96]
[1755357935701,6.94163495,189.48,189.35,2.51103077]
[1755357935907,2.86,189.38,189.37,2.96]
[1755357937910,2.86,189.38,189.33,2.96]
[1755357938408,2.51103077,189.45,189.33,2.96]
[1755357938409,2.86,189.44,189.33,2.96]
[1755357938612,2.86,189.42,189.33,2.96]
[1755357940308,2.86,189.42,189.25,176.58]
[1755357940511,2.86,189.38,189.27,2.96]
[1755357941407,2.86,189.38,189.26,2.51103077]
[1755357941408,2.86,189.38,189.3,2.96]
[1755357943513,2.86,189.38,189.33,2.96]
[1755357944403,2.86,189.38,189.32,2.51103077]
[1755357944610,2.86,189.38,189.34,2.96]
[1755357944810,2.86,189.38,189.35,2.96]
[1755357945206,2.86,189.37,189.35,2.96]
[1755357945410,2.86,189.44,189.35,2.96]
[1755357945609,3.92175096,189.43,189.35,2.96]
[1755357945808,2.86,189.41,189.35,2.96]
[1755357947217,2.86,189.41,189.35,8.2379]
[1755357947422,2.86,189.4,189.36,2.96]
[1755357947618,2.86,189.46,189.37,2.51103077]
[1755357947815,2.86,189.44,189.38,2.96]
[1755357948822,3.06,189.48,189.38,2.96]
[1755357949017,3.06,189.46,189.38,2.96]
[1755357949224,3.06,189.44,189.38,2.96]
[1755357949420,3.06,189.44,189.38,8.237]
[1755357949724,3.06,189.43,189.39,3.0]
[1755357949924,3.06,189.42,189.39,3.0]
[1755357950425,3.06,189.49,189.4,3.0]
[1755357950619,3.06,189.47,189.4,3.0]
[1755357950819,3.06,189.45,189.38,3.0]
[1755357952325,3.06,189.43,189.33,3.0]
[1755357952525,3.06,189.41,189.33,3.0]
[1755357952827,2.51103077,189.44,189.33,3.0]
[1755357952828,3.06,189.39,189.33,3.0]
[1755357953020,3.06,189.41,189.35,2.51103077]
[1755357953222,3.06,189.4,189.36,3.0]
[1755357953426,3.06,189.39,189.36,3.0]
[1755357955128,3.06,189.46,189.36,3.0]
[1755357955328,3.06,189.44,189.36,3.0]
[1755357955528,3.06,189.42,189.36,3.0]
[1755357955919,3.06,189.42,189.23,3.0]
[1755357956127,3.06,189.39,189.3,3.0]
[1755357956324,3.06,189.37,189.3,3.0]
[1755357956921,3.06,189.36,189.3,3.0]
[1755357960526,3.94067877,189.35,189.29,2.51103077]
[1755357960730,3.06,189.38,189.3,3.0]
[1755357960929,3.06,189.36,189.3,3.0]
[1755357961232,3.06,189.34,189.3,3.0]
[1755357961433,3.06,189.33,189.31,3.0]
[1755357961627,3.06,189.33,189.32,3.0]
[1755357963533,3.06,189.38,189.3,3.0]
[1755357963730,3.06,189.36,189.27,3.0]
[1755357963931,3.06,189.34,189.27,3.0]
[1755357964130,3.94138286,189.33,189.27,3.0]
[1755357964327,3.06,189.31,189.27,3.0]
[1755357965626,3.06,189.31,189.28,3.0]
[1755357965831,3.06,189.3,189.28,3.0]
[1755357966028,3.06,189.35,189.28,3.0]
[1755357966232,3.06,189.33,189.28,3.0]
[1755357966534,3.06,189.31,189.28,3.0]
[1755357967127,3.06,189.31,189.24,3.0]
[1755357968036,3.06,189.31,189.12,3.0]
[1755357968237,3.06,189.26,189.12,2.51103077]
[1755357968528,3.06,189.24,189.18,2.51103077]
[1755357968934,3.06,189.24,189.2,3.0]
[1755357969131,3.06,189.23,189.21,3.0]
[1755357969332,360.67574891,189.33,189.19,3.0]
[1755357969333,3.06,189.25,189.19,3.0]
[1755357972226,361.74163495,189.33,189.09,64.51103077]
[1755357972227,3.06,189.32,189.24,2.51103077]
[1755357972431,3.06,189.32,189.25,3.0]
[1755357974838,3.06,189.32,189.22,3.0]
[1755357977038,3.06,189.32,189.22,5.2815]
[1755357977239,3.06,189.32,189.23,3.0]
[1755357977635,3.06,189.32,189.25,3.0]
[1755357977937,3.06,189.38,189.28,3.0]
[1755357978138,3.06,189.36,189.28,3.0]
[1755357981642,5.57103077,189.36,189.26,2.99]
[1755357981838,2.92,189.34,189.26,2.99]
[1755357985744,2.92,189.32,189.26,2.99]
[1755357988642,2.92,189.38,189.26,2.99]
[1755357988940,2.92,189.36,189.26,2.99]
[1755357989445,2.92,189.36,189.25,2.51103077]
[1755357989446,2.92,189.36,189.29,2.99]
[1755357989849,2.92,189.38,189.32,2.99]
[1755357990042,2.92,189.4,189.33,2.99]
[1755357993444,2.51103077,189.44,189.33,2.99]
[1755357993645,64.23945947,189.46,189.35,2.99]
[1755357993646,2.92,189.42,189.35,2.99]
[1755357993848,3.9259871,189.41,189.35,2.99]
[1755357994044,2.92,189.4,189.36,2.99]
[1755357996941,2.92,189.4,189.33,2.99]
[1755358000246,3.93067539,189.39,189.3,2.99]
[1755358000448,2.92,189.4,189.3,2.99]
[1755358000649,2.92,189.38,189.3,2.99]
[1755358003254,2.92,189.38,189.32,2.51103077]
[1755358003459,2.92,189.38,189.33,2.99]
[1755358003651,2.92,189.37,189.33,2.99]
[1755358004051,2.92,189.36,189.33,2.99]
[1755358004449,2.92,189.35,189.34,2.99]
[1755358004851,2.92,189.35,189.32,2.99]
[1755358005356,2.92,189.35,189.29,2.51103077]
[1755358005357,2.92,189.35,189.33,2.99]
[1755358005558,2.92,189.34,189.33,2.99]
[1755358006558,2.92,189.36,189.33,2.99]
[1755358006759,2.92,189.35,189.34,2.99]
[1755358007858,2.92,189.42,189.32,2.99]
[1755358008063,2.92,189.4,189.32,2.99]
[1755358008261,2.92,189.38,189.32,2.99]
[1755358014152,3.04,189.36,189.3,3.1]
[1755358018165,3.04,189.34,189.3,3.1]
[1755358018667,3.04,189.32,189.3,3.1]
[1755358019766,3.04,189.32,189.28,3.1]
[1755358019965,3.04,189.32,189.29,3.1]
[1755358020771,3.04,189.32,189.24,3.1]
[1755358021164,3.04,189.34,189.26,2.51103077]
[1755358021465,3.04,189.38,189.3,3.1]
[1755358021664,3.930079,189.37,189.3,8.3794]
[1755358021861,3.930079,189.36,189.31,3.1]
[1755358022063,3.04,189.38,189.31,3.1]
[1755358022264,3.93049234,189.37,189.31,3.1]
[1755358022460,3.93049234,189.36,189.31,3.1]
[1755358022659,3.04,189.38,189.31,3.1]
[1755358022859,6.97070396,189.37,189.31,3.1]
[1755358023165,3.04,189.35,189.31,3.1]
[1755358025867,4.43060418,189.42,189.29,2.51103077]
[1755358026073,3.04,189.4,189.32,3.1]
[1755358026272,3.04,189.38,189.32,3.1]
[1755358026468,5.87574891,189.45,189.29,2.51103077]
[1755358026469,3.04,189.36,189.29,3.1]
[1755358026666,3.04,189.34,189.3,3.1]
[1755358028872,3.04,189.34,189.27,3.1]
[1755358029067,3.04,189.32,189.27,3.1]
[1755358029774,3.04,189.32,189.24,3.1]
[1755358033170,4.43060418,189.38,189.26,2.51103077]
[1755358033372,3.04,189.34,189.28,3.1]
[1755358034474,3.04,189.38,189.29,5.61103077]
[1755358034676,3.93539697,189.37,189.3,3.1]
[1755358034876,3.04,189.37,189.3,5.2792]
[1755358035180,3.04,189.37,189.31,3.1]
[1755358038269,3.04,189.37,189.31,8.3791]
[1755358038480,3.04,189.37,189.32,3.1]
[1755358041376,3.04,189.37,189.31,5.2791]
[1755358041574,3.09,189.41,189.32,2.91]
[1755358041881,3.09,189.39,189.32,2.91]
[1755358042080,3.09,189.37,189.32,2.91]
[1755358046291,3.09,189.36,189.33,2.91]
[1755358047196,3.09,189.35,189.33,2.91]
[1755358048888,3.09,189.34,189.32,2.51103077]
[1755358049489,3.09,189.34,189.33,2.91]
[1755358052799,3.09,189.43,189.32,5.42103077]
[1755358053099,3.09,189.41,189.32,5.42103077]
[1755358053397,3.09,189.39,189.32,5.42103077]
[1755358053599,3.09,189.37,189.32,2.51103077]
[1755358053899,3.09,189.37,189.33,2.91]
[1755358054792,3.09,189.37,189.31,2.91]
[1755358055100,3.09,189.35,189.31,2.91]
[1755358055295,3.09,189.35,189.3,146.0]
[1755358055801,3.09,189.35,189.31,2.91]
[1755358057696,3.09,189.35,189.32,2.91]
[1755358058804,3.09,189.35,189.33,2.91]
[1755358063110,3.09,189.34,189.33,2.91]
[1755358067113,3.09,189.41,189.33,2.91]
[1755358067312,3.93344591,189.4,189.33,2.91]
[1755358067507,3.09,189.38,189.33,2.91]
[1755358070417,3.08,189.36,189.33,2.91]
[1755358070818,4.43741337,189.42,189.33,2.91]
[1755358071017,3.08,189.35,189.33,2.91]
[1755358071214,15.7110525,189.41,189.34,132.04]
[1755358071215,3.08,189.41,189.34,132.04]
[1755358071406,3.93323489,189.4,189.35,2.88]
[1755358071612,3.08,189.44,189.35,5.39103077]
[1755358071809,3.08,189.42,189.36,2.88]
[1755358072014,3.08,189.4,189.36,2.88]
[1755358072412,3.08,189.39,189.36,2.88]
[1755358072613,3.08,189.38,189.36,2.88]
[1755358073020,3.08,189.37,189.36,2.88]
[1755358075516,4.43741337,189.45,189.35,2.51103077]
[1755358075717,3.08,189.43,189.35,5.39103077]
[1755358075920,3.08,189.41,189.36,2.88]
[1755358076221,3.08,189.39,189.37,2.88]
[1755358076420,3.08,189.39,189.35,2.51103077]
[1755358076618,3.08,189.39,189.36,2.88]
[1755358077125,3.08,189.39,189.37,2.88]
[1755358080624,3.08,189.37,189.35,131.96]
[1755358081219,3.08,189.37,189.35,134.84]
[1755358081416,6.04384175,189.43,189.36,1.60253777]
[1755358081620,3.08,189.41,189.37,2.88]
[1755358081922,3.08,189.39,189.37,2.88]
[1755358082114,3.9309931,189.38,189.37,2.88]
[1755358082322,7.0109931,189.38,189.37,2.88]
[1755358083519,3.9309931,189.38,189.37,2.88]
[1755358083723,3.08,189.45,189.37,2.88]
[1755358083925,3.08,189.43,189.41,1.60253777]
[1755358084116,3.08,189.43,189.4,2.88]
[1755358084314,3.08,189.43,189.39,1.60253777]
[1755358084822,3.08,189.43,189.38,2.88]
[1755358085025,3.08,189.43,189.39,2.88]
[1755358085226,3.08,189.43,189.37,131.94]
[1755358085422,3.08,189.43,189.37,134.82]
[1755358088220,3.08,189.43,189.33,2.50283097]
[1755358088426,3.08,189.41,189.34,2.88]
[1755358089424,3.08,189.41,189.37,2.88]
[1755358089623,3.08,189.43,189.37,131.9]
[1755358089923,3.08,189.43,189.38,2.88]
[1755358090124,3.08,189.42,189.38,2.88]
[1755358091222,3.08,189.4,189.38,2.88]
[1755358091423,3.08,189.46,189.38,2.88]
[1755358091626,3.08,189.44,189.38,2.88]
[1755358092020,3.08,189.44,189.35,2.88]
[1755358095620,3.9081137,189.43,189.35,2.88]
[1755358095824,3.08,189.41,189.35,2.88]
[1755358096024,3.08,189.39,189.35,2.88]
[1755358098429,6.94413495,189.46,189.4,142.92]
[1755358098624,12.47789402,189.45,189.4,142.92]
[1755358098820,12.47789402,189.44,189.4,142.92]
[1755358099028,12.47821223,189.43,189.4,142.92]
[1755358099230,8.01680792,189.42,189.4,142.92]
[1755358099426,4.44130398,189.45,189.4,142.92]
[1755358099427,3.90794102,189.41,189.4,142.92]
[1755358099726,3.90794102,189.44,189.4,142.92]
[1755358099928,12.47879447,189.43,189.4,142.92]
[1755358100134,8.01696105,189.42,189.4,142.92]
[1755358100336,3.90794102,189.41,189.4,142.92]
[1755358100631,2.93,189.41,189.4,142.92]
[1755358100827,6.83794102,189.41,189.4,142.92]
[1755358102724,6.83794102,189.41,189.4,145.93]
[1755358103236,6.83794102,189.41,189.4,142.92]
[1755358105240,3.90794102,189.41,189.4,145.93]